[Event "*** Titled Tuesday Blitz"]
[Site "Chess.com"]
[Date "2019.02.05"]
[Round "1"]
[White "Ali_rastbod"]
[Black "Romn69"]
[Result "1-0"]
[WhiteElo "2610"]
[BlackElo "2249"]
[TimeControl "180+2"]
[EndTime "13:11:56 PST"]
[Termination "Ali_rastbod won by checkmate"]

1. c4 {[%clk 0:03:01.9]} 1... e6 {[%clk 0:02:59.9]} 2. Nc3 {[%clk 0:03:03.1]}
2... d5 {[%clk 0:03:00.9]} 3. d4 {[%clk 0:03:03.8]} 3... c5 {[%clk 0:03:01.8]}
4. cxd5 {[%clk 0:03:04.3]} 4... exd5 {[%clk 0:03:02.7]} 5. Nf3 {[%clk
0:03:05.1]} 5... Nc6 {[%clk 0:03:03.5]} 6. g3 {[%clk 0:03:06.2]} 6... Nf6 {[%clk
0:03:04.3]} 7. Bg2 {[%clk 0:03:07]} 7... Be7 {[%clk 0:03:05.3]} 8. O-O {[%clk
0:03:07.6]} 8... O-O {[%clk 0:03:05.8]} 9. Bg5 {[%clk 0:03:08.7]} 9... cxd4
{[%clk 0:03:06.4]} 10. Nxd4 {[%clk 0:03:09.9]} 10... h6 {[%clk 0:03:06.8]} 11.
Bf4 {[%clk 0:03:06]} 11... Bg4 {[%clk 0:03:06.6]} 12. h3 {[%clk 0:03:04.6]}
12... Be6 {[%clk 0:03:07.3]} 13. Rc1 {[%clk 0:03:02.6]} 13... Qd7 {[%clk
0:03:04.6]} 14. Kh2 {[%clk 0:02:58.8]} 14... Rad8 {[%clk 0:02:56.4]} 15. Nxc6
{[%clk 0:02:59]} 15... bxc6 {[%clk 0:02:56.5]} 16. Na4 {[%clk 0:03:00.4]} 16...
Ne4 {[%clk 0:02:49.2]} 17. f3 {[%clk 0:02:52.1]} 17... Nd6 {[%clk 0:02:00.7]}
18. Nc5 {[%clk 0:02:51.4]} 18... Qc8 {[%clk 0:02:00.5]} 19. Qa4 {[%clk 0:02:47]}
19... Nc4 {[%clk 0:01:37.8]} 20. Nxe6 {[%clk 0:02:29.5]} 20... fxe6 {[%clk
0:01:19.1]} 21. Qxa7 {[%clk 0:02:29.7]} 21... Rxf4 {[%clk 0:01:10.6]} 22. Qxe7
{[%clk 0:02:10.9]} 22... Rf7 {[%clk 0:00:54.9]} 23. Qc5 {[%clk 0:02:11.5]} 23...
Nxb2 {[%clk 0:00:39.5]} 24. Qxc6 {[%clk 0:02:10.5]} 24... Nc4 {[%clk 0:00:39.4]}
25. Qxc8 {[%clk 0:02:01.5]} 25... Rxc8 {[%clk 0:00:39.9]} 26. e4 {[%clk
0:02:01.3]} 26... Ra8 {[%clk 0:00:32.3]} 27. exd5 {[%clk 0:01:58.2]} 27... exd5
{[%clk 0:00:31.1]} 28. Rf2 {[%clk 0:01:58.9]} 28... Rfa7 {[%clk 0:00:30.6]} 29.
Rcc2 {[%clk 0:01:57.5]} 29... Ne3 {[%clk 0:00:21.9]} 30. Rce2 {[%clk 0:01:58.1]}
30... d4 {[%clk 0:00:21.4]} 31. Rd2 {[%clk 0:01:58.3]} 31... Ra3 {[%clk
0:00:18.1]} 32. f4 {[%clk 0:01:56.2]} 32... Nxg2 {[%clk 0:00:18.7]} 33. Kxg2
{[%clk 0:01:56.3]} 33... R8a4 {[%clk 0:00:18.9]} 34. f5 {[%clk 0:01:52.1]} 34...
Kf7 {[%clk 0:00:19.5]} 35. g4 {[%clk 0:01:51.6]} 35... h5 {[%clk 0:00:18.6]} 36.
g5 {[%clk 0:01:52.2]} 36... h4 {[%clk 0:00:19.6]} 37. Rfe2 {[%clk 0:01:51.7]}
37... Rg3+ {[%clk 0:00:19.6]} 38. Kh2 {[%clk 0:01:46.1]} 38... Rxg5 {[%clk
0:00:20.3]} 39. Re5 {[%clk 0:01:44.8]} 39... Kf6 {[%clk 0:00:18]} 40. Re4 {[%clk
0:01:41]} 40... Rxf5 {[%clk 0:00:18.2]} 41. Rxh4 {[%clk 0:01:41]} 41... Rd5
{[%clk 0:00:17.7]} 42. Kg3 {[%clk 0:01:39.6]} 42... g5 {[%clk 0:00:17.6]} 43.
Rh6+ {[%clk 0:01:39.4]} 43... Kf5 {[%clk 0:00:18.2]} 44. Rf2+ {[%clk 0:01:35.6]}
44... Ke4 {[%clk 0:00:18.5]} 45. Rg6 {[%clk 0:01:37.1]} 45... d3 {[%clk
0:00:18.4]} 46. Re6+ {[%clk 0:01:37.7]} 46... Kd4 {[%clk 0:00:18.7]} 47. Re1
{[%clk 0:01:30.2]} 47... Ra3 {[%clk 0:00:18.5]} 48. Kg4 {[%clk 0:01:28.7]} 48...
Rc5 {[%clk 0:00:15.6]} 49. Re8 {[%clk 0:01:27.1]} 49... Rc2 {[%clk 0:00:15.5]}
50. Rd8+ {[%clk 0:01:25]} 50... Ke3 {[%clk 0:00:15.8]} 51. Rxd3+ {[%clk
0:01:21.4]} 51... Rxd3 {[%clk 0:00:11.7]} 52. Rxc2 {[%clk 0:01:22]} 52... Rd5
{[%clk 0:00:12.5]} 53. a4 {[%clk 0:01:21.6]} 53... Rd4+ {[%clk 0:00:11.9]} 54.
Kxg5 {[%clk 0:01:21.8]} 54... Rxa4 {[%clk 0:00:13.3]} 55. h4 {[%clk 0:01:22.7]}
55... Ke4 {[%clk 0:00:12.5]} 56. Re2+ {[%clk 0:01:21.6]} 56... Kd5 {[%clk
0:00:12]} 57. h5 {[%clk 0:01:21.9]} 57... Ra1 {[%clk 0:00:12.1]} 58. h6 {[%clk
0:01:20.2]} 58... Rg1+ {[%clk 0:00:12.5]} 59. Kf6 {[%clk 0:01:21]} 59... Rf1+
{[%clk 0:00:13]} 60. Kg7 {[%clk 0:01:22.2]} 60... Rg1+ {[%clk 0:00:13.7]} 61.
Kh7 {[%clk 0:01:23.1]} 61... Kd6 {[%clk 0:00:13.9]} 62. Kh8 {[%clk 0:01:23.6]}
62... Kd7 {[%clk 0:00:14.5]} 63. h7 {[%clk 0:01:23.1]} 63... Rg3 {[%clk
0:00:15.2]} 64. Ra2 {[%clk 0:01:24]} 64... Ke7 {[%clk 0:00:14.5]} 65. Ra7+
{[%clk 0:01:24.9]} 65... Kf6 {[%clk 0:00:14.4]} 66. Ra8 {[%clk 0:01:25.9]} 66...
Kf7 {[%clk 0:00:09.8]} 67. Rg8 {[%clk 0:01:27]} 67... Rh3 {[%clk 0:00:10.2]} 68.
Rg7+ {[%clk 0:01:27.4]} 68... Kf8 {[%clk 0:00:10.2]} 69. Rg1 {[%clk 0:01:28.9]}
69... Kf7 {[%clk 0:00:08.3]} 70. Rf1+ {[%clk 0:01:29.6]} 70... Ke7 {[%clk
0:00:07.2]} 71. Kg7 {[%clk 0:01:06.9]} 71... Rg3+ {[%clk 0:00:07.7]} 72. Kh6
{[%clk 0:01:08.5]} 72... Rh3+ {[%clk 0:00:08.3]} 73. Kg6 {[%clk 0:01:09.5]}
73... Rg3+ {[%clk 0:00:09]} 74. Kf5 {[%clk 0:01:11]} 74... Rh3 {[%clk
0:00:08.5]} 75. Ra1 {[%clk 0:01:12.4]} 75... Kf8 {[%clk 0:00:05.1]} 76. Ra7
{[%clk 0:01:04.3]} 76... Rh1 {[%clk 0:00:03]} 77. Kg6 {[%clk 0:00:58.3]} 77...
Rg1+ {[%clk 0:00:03]} 78. Kf6 {[%clk 0:00:59.4]} 78... Rh1 {[%clk 0:00:04]} 79.
h8=Q+ {[%clk 0:00:54.6]} 79... Rxh8 {[%clk 0:00:03.2]} 80. Ra8# {[%clk
0:00:53.5]} 1-0

[Event "*** Titled Tuesday Blitz"]
[Site "Chess.com"]
[Date "2019.02.05"]
[Round "1"]
[White "saraswathii"]
[Black "GianmarcoVaR"]
[Result "1-0"]
[WhiteElo "2273"]
[BlackElo "2586"]
[TimeControl "180+2"]
[EndTime "13:12:45 PST"]
[Termination "saraswathii won by checkmate"]

1. d4 {[%clk 0:02:58.8]} 1... Nf6 {[%clk 0:02:58.3]} 2. Bf4 {[%clk 0:02:57.8]}
2... b6 {[%clk 0:02:59.2]} 3. e3 {[%clk 0:02:58.7]} 3... Bb7 {[%clk 0:03:00.3]}
4. Nf3 {[%clk 0:02:59.7]} 4... Nh5 {[%clk 0:02:55.8]} 5. Bg5 {[%clk 0:02:58.5]}
5... h6 {[%clk 0:02:57]} 6. Bh4 {[%clk 0:02:58.5]} 6... g5 {[%clk 0:02:58]} 7.
Nfd2 {[%clk 0:02:59.5]} 7... Nf6 {[%clk 0:02:47]} 8. Bg3 {[%clk 0:02:59.9]} 8...
Bg7 {[%clk 0:02:45.1]} 9. c4 {[%clk 0:03:00.5]} 9... c5 {[%clk 0:02:42.2]} 10.
Nc3 {[%clk 0:03:00.7]} 10... d6 {[%clk 0:02:37.7]} 11. d5 {[%clk 0:03:01.1]}
11... e6 {[%clk 0:02:30.1]} 12. e4 {[%clk 0:02:55.2]} 12... O-O {[%clk
0:01:45.5]} 13. Bd3 {[%clk 0:02:49.9]} 13... Qe7 {[%clk 0:01:44]} 14. O-O {[%clk
0:02:46.2]} 14... Nbd7 {[%clk 0:01:44]} 15. Qe2 {[%clk 0:02:35.8]} 15... Ne5
{[%clk 0:01:43.3]} 16. Bc2 {[%clk 0:02:32.2]} 16... Ng6 {[%clk 0:01:40.2]} 17.
Rae1 {[%clk 0:02:22.6]} 17... Nd7 {[%clk 0:01:39.8]} 18. Nb5 {[%clk 0:02:11.8]}
18... Nde5 {[%clk 0:01:35]} 19. Nf3 {[%clk 0:01:59.5]} 19... Nf4 {[%clk
0:01:24.5]} 20. Bxf4 {[%clk 0:01:58.4]} 20... gxf4 {[%clk 0:01:26]} 21. dxe6
{[%clk 0:01:51.6]} 21... fxe6 {[%clk 0:01:24]} 22. Rd1 {[%clk 0:01:51.5]} 22...
Rad8 {[%clk 0:01:20.6]} 23. Nxa7 {[%clk 0:01:46.8]} 23... Nxf3+ {[%clk
0:00:30.8]} 24. Qxf3 {[%clk 0:01:45.4]} 24... Bxb2 {[%clk 0:00:29.5]} 25. Rb1
{[%clk 0:01:45.3]} 25... Qg7 {[%clk 0:00:27.9]} 26. Rfd1 {[%clk 0:01:33.8]}
26... Ba6 {[%clk 0:00:22.7]} 27. Nb5 {[%clk 0:01:25.1]} 27... Bxb5 {[%clk
0:00:23.6]} 28. cxb5 {[%clk 0:01:26]} 28... Bd4 {[%clk 0:00:10.6]} 29. Bb3
{[%clk 0:01:25.3]} 29... Rf6 {[%clk 0:00:10.1]} 30. Kh1 {[%clk 0:01:22.9]} 30...
Kh8 {[%clk 0:00:11.5]} 31. a4 {[%clk 0:01:20.9]} 31... Rg8 {[%clk 0:00:11.8]}
32. Rg1 {[%clk 0:01:20.3]} 32... Qg5 {[%clk 0:00:12]} 33. Rbd1 {[%clk
0:01:16.7]} 33... Qh4 {[%clk 0:00:13.2]} 34. Rd2 {[%clk 0:01:16]} 34... Rg5
{[%clk 0:00:13.1]} 35. Bd1 {[%clk 0:01:15.2]} 35... Rfg6 {[%clk 0:00:11.1]} 36.
Ra2 {[%clk 0:01:08.6]} 36... Rg7 {[%clk 0:00:04.5]} 37. Rd2 {[%clk 0:01:06.3]}
37... R5g6 {[%clk 0:00:05.3]} 38. Ra2 {[%clk 0:00:57.8]} 38... Qf6 {[%clk
0:00:06.2]} 39. a5 {[%clk 0:00:56.5]} 39... bxa5 {[%clk 0:00:07.6]} 40. Rxa5
{[%clk 0:00:57.8]} 40... c4 {[%clk 0:00:07.2]} 41. Ra8+ {[%clk 0:00:56]} 41...
Rg8 {[%clk 0:00:08.6]} 42. Ra4 {[%clk 0:00:53.3]} 42... Rc8 {[%clk 0:00:07.2]}
43. Bc2 {[%clk 0:00:50.9]} 43... Qh4 {[%clk 0:00:07.2]} 44. e5 {[%clk
0:00:48.4]} 44... Rg7 {[%clk 0:00:08.5]} 45. exd6 {[%clk 0:00:44.1]} 45... Bxf2
{[%clk 0:00:09.4]} 46. Rf1 {[%clk 0:00:44.8]} 46... Be3 {[%clk 0:00:07.8]} 47.
Ra8 {[%clk 0:00:43.2]} 47... Qd8 {[%clk 0:00:06.6]} 48. Rxc8 {[%clk 0:00:41.5]}
48... Qxc8 {[%clk 0:00:08]} 49. b6 {[%clk 0:00:38.7]} 49... Qb7 {[%clk
0:00:06.4]} 50. Qxb7 {[%clk 0:00:35.6]} 50... Rxb7 {[%clk 0:00:07.5]} 51. Ba4
{[%clk 0:00:34.7]} 51... Rxb6 {[%clk 0:00:05.9]} 52. d7 {[%clk 0:00:33.3]} 52...
Rd6 {[%clk 0:00:07]} 53. h4 {[%clk 0:00:31.2]} 53... Kg7 {[%clk 0:00:07.3]} 54.
Rd1 {[%clk 0:00:24]} 54... Rxd1+ {[%clk 0:00:06.8]} 55. Bxd1 {[%clk 0:00:25.8]}
55... Bb6 {[%clk 0:00:07.4]} 56. Ba4 {[%clk 0:00:24.3]} 56... c3 {[%clk
0:00:07.8]} 57. Kh2 {[%clk 0:00:22.6]} 57... Kf6 {[%clk 0:00:05]} 58. Kh3 {[%clk
0:00:21.1]} 58... h5 {[%clk 0:00:06.1]} 59. g4 {[%clk 0:00:20]} 59... e5 {[%clk
0:00:04.4]} 60. gxh5 {[%clk 0:00:15.8]} 60... e4 {[%clk 0:00:04.8]} 61. Bd1
{[%clk 0:00:12.2]} 61... f3 {[%clk 0:00:04.7]} 62. Kg3 {[%clk 0:00:10.9]} 62...
Ke7 {[%clk 0:00:05.9]} 63. h6 {[%clk 0:00:11.7]} 63... Kxd7 {[%clk 0:00:06.6]}
64. h7 {[%clk 0:00:12.7]} 64... Bd4 {[%clk 0:00:07.9]} 65. Bc2 {[%clk
0:00:11.3]} 65... f2 {[%clk 0:00:07.5]} 66. h8=Q {[%clk 0:00:10.3]} 66... f1=Q
{[%clk 0:00:06]} 67. Qxd4+ {[%clk 0:00:10.1]} 67... Kc7 {[%clk 0:00:07.4]} 68.
Qxc3+ {[%clk 0:00:09.8]} 68... Kd6 {[%clk 0:00:08.7]} 69. Qd4+ {[%clk
0:00:08.9]} 69... Kc7 {[%clk 0:00:10.2]} 70. Qc5+ {[%clk 0:00:08.7]} 70... Kd7
{[%clk 0:00:10]} 71. Qd5+ {[%clk 0:00:09.4]} 71... Kc7 {[%clk 0:00:10.3]} 72.
Qe5+ {[%clk 0:00:06.7]} 72... Kb6 {[%clk 0:00:08.8]} 73. Bxe4 {[%clk 0:00:03.6]}
73... Qg1+ {[%clk 0:00:06.5]} 74. Bg2 {[%clk 0:00:04.3]} 74... Qc1 {[%clk
0:00:04.6]} 75. h5 {[%clk 0:00:05.5]} 75... Qh6 {[%clk 0:00:04.9]} 76. Kg4
{[%clk 0:00:06.6]} 76... Ka7 {[%clk 0:00:03.6]} 77. Qd4+ {[%clk 0:00:05.6]}
77... Ka6 {[%clk 0:00:04.3]} 78. Bf1+ {[%clk 0:00:06.4]} 78... Kb7 {[%clk
0:00:05.3]} 79. Qe4+ {[%clk 0:00:07.5]} 79... Kb8 {[%clk 0:00:05.2]} 80. Qf4+
{[%clk 0:00:08.4]} 80... Qd6 {[%clk 0:00:04.2]} 81. Qxd6+ {[%clk 0:00:09.2]}
81... Kc8 {[%clk 0:00:05.3]} 82. Ba6# {[%clk 0:00:09.2]} 1-0

[Event "*** Titled Tuesday Blitz"]
[Site "Chess.com"]
[Date "2019.02.05"]
[Round "1"]
[White "Arystanner"]
[Black "MasterKroket"]
[Result "1-0"]
[WhiteElo "2769"]
[BlackElo "2380"]
[TimeControl "180+2"]
[EndTime "13:12:49 PST"]
[Termination "Arystanner won by resignation"]

1. e4 {[%clk 0:03:01.9]} 1... c5 {[%clk 0:03:00.8]} 2. Nf3 {[%clk 0:03:03.2]}
2... e6 {[%clk 0:03:02.3]} 3. c3 {[%clk 0:03:04]} 3... Nf6 {[%clk 0:03:03]} 4.
e5 {[%clk 0:03:05]} 4... Nd5 {[%clk 0:03:04.5]} 5. g3 {[%clk 0:03:06]} 5... d6
{[%clk 0:03:01.4]} 6. Bg2 {[%clk 0:03:07]} 6... Nc6 {[%clk 0:03:01.7]} 7. exd6
{[%clk 0:03:08.6]} 7... Bxd6 {[%clk 0:03:02.6]} 8. O-O {[%clk 0:03:10.5]} 8...
O-O {[%clk 0:03:03.3]} 9. d4 {[%clk 0:03:10.9]} 9... cxd4 {[%clk 0:03:03.9]} 10.
Nxd4 {[%clk 0:03:12.4]} 10... Nce7 {[%clk 0:02:55.1]} 11. Nd2 {[%clk 0:03:11]}
11... a6 {[%clk 0:02:50.7]} 12. Nc4 {[%clk 0:03:09.6]} 12... Bc7 {[%clk
0:02:51.8]} 13. a4 {[%clk 0:03:10]} 13... Rb8 {[%clk 0:02:46.8]} 14. Re1 {[%clk
0:03:06.9]} 14... b5 {[%clk 0:02:46.2]} 15. axb5 {[%clk 0:03:08.8]} 15... axb5
{[%clk 0:02:47.4]} 16. Ne5 {[%clk 0:03:10.4]} 16... Bxe5 {[%clk 0:02:28.7]} 17.
Rxe5 {[%clk 0:03:10]} 17... Qc7 {[%clk 0:02:23.1]} 18. f4 {[%clk 0:03:02.8]}
18... Rd8 {[%clk 0:02:22]} 19. Qe1 {[%clk 0:02:56.8]} 19... b4 {[%clk
0:02:14.6]} 20. Bd2 {[%clk 0:02:56.9]} 20... bxc3 {[%clk 0:02:14.6]} 21. bxc3
{[%clk 0:02:58.8]} 21... Bb7 {[%clk 0:02:02.4]} 22. Rc1 {[%clk 0:02:39.1]} 22...
Nc6 {[%clk 0:01:41.2]} 23. Nxc6 {[%clk 0:02:38.1]} 23... Bxc6 {[%clk 0:01:42.3]}
24. c4 {[%clk 0:02:36]} 24... Ne7 {[%clk 0:01:36.3]} 25. Ba5 {[%clk 0:02:23.3]}
25... Qa7+ {[%clk 0:01:37.3]} 26. Qe3 {[%clk 0:02:24.5]} 26... Qxe3+ {[%clk
0:01:35.6]} 27. Rxe3 {[%clk 0:02:26.2]} 27... Rd7 {[%clk 0:01:28.2]} 28. Bc3
{[%clk 0:02:10.8]} 28... Rc8 {[%clk 0:01:26.6]} 29. Bf1 {[%clk 0:02:08]} 29...
Bb7 {[%clk 0:01:24.6]} 30. Be5 {[%clk 0:02:02.7]} 30... Nc6 {[%clk 0:01:18.9]}
31. c5 {[%clk 0:01:52.3]} 31... Nxe5 {[%clk 0:01:18.5]} 32. Rxe5 {[%clk
0:01:53.9]} 32... Bc6 {[%clk 0:01:18.6]} 33. Re3 {[%clk 0:01:47.9]} 33... Rd2
{[%clk 0:01:16.5]} 34. Rb3 {[%clk 0:01:42]} 34... Kf8 {[%clk 0:01:14.5]} 35. Rb6
{[%clk 0:01:38]} 35... Ke7 {[%clk 0:01:14.8]} 36. Ra6 {[%clk 0:01:36.4]} 36...
Rc7 {[%clk 0:01:14.1]} 37. Rb6 {[%clk 0:01:20.7]} 37... Bd5 {[%clk 0:01:11.5]}
38. Rb8 {[%clk 0:01:21.8]} 38... Ra7 {[%clk 0:01:07.2]} 39. c6 {[%clk
0:01:13.4]} 39... Raa2 {[%clk 0:01:07.9]} 40. Rb5 {[%clk 0:00:51.7]} 40... Rac2
{[%clk 0:00:41.8]} 41. Rc5 {[%clk 0:00:46.1]} 41... Rxc1 {[%clk 0:00:21.2]} 42.
Rxc1 {[%clk 0:00:46.9]} 42... Ra2 {[%clk 0:00:10.8]} 43. c7 {[%clk 0:00:48]}
43... Bb7 {[%clk 0:00:12.1]} 44. c8=Q {[%clk 0:00:49]} 44... Bxc8 {[%clk
0:00:13.6]} 45. Rxc8 {[%clk 0:00:50.4]} 45... Kf6 {[%clk 0:00:14.9]} 46. Rc5
{[%clk 0:00:46.6]} 46... h6 {[%clk 0:00:15.8]} 47. h4 {[%clk 0:00:37.4]} 47...
g6 {[%clk 0:00:16.2]} 48. Bg2 {[%clk 0:00:37.5]} 48... Ra3 {[%clk 0:00:16.5]}
49. Kf2 {[%clk 0:00:38.1]} 49... Ra2+ {[%clk 0:00:17.5]} 50. Kf3 {[%clk
0:00:38.7]} 50... Ra3+ {[%clk 0:00:18.8]} 51. Kf2 {[%clk 0:00:40.1]} 51... Ra2+
{[%clk 0:00:19.8]} 52. Kg1 {[%clk 0:00:41.5]} 52... Ra1+ {[%clk 0:00:20.9]} 53.
Kh2 {[%clk 0:00:42.9]} 53... Ra2 {[%clk 0:00:22.5]} 54. Re5 {[%clk 0:00:41.5]}
54... Rb2 {[%clk 0:00:22.9]} 55. Kg1 {[%clk 0:00:39.5]} 55... Rb1+ {[%clk
0:00:23.8]} 56. Kf2 {[%clk 0:00:41.1]} 56... Rb2+ {[%clk 0:00:25.2]} 57. Re2
{[%clk 0:00:42.6]} 57... Rb3 {[%clk 0:00:26.5]} 58. Re3 {[%clk 0:00:42.5]} 58...
Rb2+ {[%clk 0:00:27.3]} 59. Kf3 {[%clk 0:00:43.9]} 59... Ra2 {[%clk 0:00:28.8]}
60. Bf1 {[%clk 0:00:43.1]} 60... Ra4 {[%clk 0:00:28.2]} 61. Rb3 {[%clk
0:00:43.4]} 61... Ra1 {[%clk 0:00:28]} 62. Bb5 {[%clk 0:00:40.5]} 62... Rd1
{[%clk 0:00:21.5]} 63. Bc6 {[%clk 0:00:37.9]} 63... Rd6 {[%clk 0:00:21.6]} 64.
Be4 {[%clk 0:00:38.5]} 64... Rd4 {[%clk 0:00:21.5]} 65. Rb7 {[%clk 0:00:37.9]}
65... Rc4 {[%clk 0:00:21.4]} 66. Bd3 {[%clk 0:00:29.9]} 66... Rc3 {[%clk
0:00:22.3]} 67. Ke3 {[%clk 0:00:29.7]} 67... Ra3 {[%clk 0:00:23.2]} 68. Kd4
{[%clk 0:00:28.9]} 68... Ra4+ {[%clk 0:00:23.1]} 69. Bc4 {[%clk 0:00:29.9]}
69... Ra3 {[%clk 0:00:23.8]} 70. Rb3 {[%clk 0:00:31]} 70... Ra1 {[%clk
0:00:23.6]} 71. Ke4 {[%clk 0:00:31.7]} 71... Re1+ {[%clk 0:00:24.4]} 72. Kf3
{[%clk 0:00:32.4]} 72... Rc1 {[%clk 0:00:24.2]} 73. Bb5 {[%clk 0:00:33.5]} 73...
Ra1 {[%clk 0:00:23.8]} 74. Rc3 {[%clk 0:00:33.8]} 74... Rb1 {[%clk 0:00:24.2]}
75. Bd3 {[%clk 0:00:32.7]} 75... Rd1 {[%clk 0:00:24.7]} 76. Be2 {[%clk
0:00:33.1]} 76... Ra1 {[%clk 0:00:25.5]} 77. Rc7 {[%clk 0:00:34.1]} 77... Ra3+
{[%clk 0:00:26.1]} 78. Kf2 {[%clk 0:00:35.1]} 78... Rb3 {[%clk 0:00:26.6]} 79.
Bc4 {[%clk 0:00:35.4]} 79... Rc3 {[%clk 0:00:26.7]} 80. Rc8 {[%clk 0:00:35]}
80... Rc2+ {[%clk 0:00:25.8]} 81. Kf3 {[%clk 0:00:35.9]} 81... Rc3+ {[%clk
0:00:27.1]} 82. Kg2 {[%clk 0:00:35.6]} 82... Rc2+ {[%clk 0:00:28.1]} 83. Kh3
{[%clk 0:00:37.1]} 83... Rb2 {[%clk 0:00:28.8]} 84. Bd3 {[%clk 0:00:32.1]} 84...
Rb3 {[%clk 0:00:28.8]} 85. Be4 {[%clk 0:00:31.9]} 85... Re3 {[%clk 0:00:29]} 86.
Bc6 {[%clk 0:00:31.6]} 86... Rc3 {[%clk 0:00:25.7]} 87. Kg2 {[%clk 0:00:32.8]}
87... Rc2+ {[%clk 0:00:26.4]} 88. Kh3 {[%clk 0:00:33.1]} 88... Rc1 {[%clk
0:00:27.1]} 89. Bb7 {[%clk 0:00:34.1]} 89... Rb1 {[%clk 0:00:27.9]} 90. Rc7
{[%clk 0:00:35.3]} 90... Rb2 {[%clk 0:00:19.6]} 91. g4 {[%clk 0:00:35.9]} 91...
Rb4 {[%clk 0:00:19.1]} 92. g5+ {[%clk 0:00:36.1]} 92... hxg5 {[%clk 0:00:20.1]}
93. hxg5+ {[%clk 0:00:34.2]} 93... Kg7 {[%clk 0:00:20.2]} 94. Kg3 {[%clk
0:00:35]} 94... Rb3+ {[%clk 0:00:21.2]} 95. Kg4 {[%clk 0:00:36.4]} 95... Rb1
{[%clk 0:00:21.8]} 96. Bc8 {[%clk 0:00:36.5]} 96... Rg1+ {[%clk 0:00:20.9]} 97.
Kf3 {[%clk 0:00:37.3]} 97... Rf1+ {[%clk 0:00:22.4]} 98. Ke3 {[%clk 0:00:37.1]}
98... Re1+ {[%clk 0:00:23.1]} 99. Kf2 {[%clk 0:00:38.5]} 99... Rd1 {[%clk
0:00:22.5]} 100. Bxe6 {[%clk 0:00:39]} 1-0